bitfinex-derivatives/quotes_BTCF0:USTF0_20250508
["timestamp","ask_amount","ask_price","bid_price","bid_amount"]
[1746688154498,0.2520943,99166.0,99165.0,0.491673]
[1746688154897,0.2520943,99166.0,99165.0,0.555773]
[1746688155090,0.201676,99166.0,99165.0,0.555773]
[1746688155294,0.369676,99166.0,99165.0,0.555773]
[1746688155500,0.371676,99166.0,99165.0,0.555773]
[1746688155902,0.373676,99166.0,99165.0,0.555773]
[1746688159211,0.205676,99166.0,99165.0,0.555773]
[1746688160101,0.373676,99166.0,99165.0,0.555773]
[1746688162802,0.373676,99166.0,99165.0,0.632053]
[1746688164103,0.205676,99166.0,99165.0,0.632053]
[1746688165115,0.373676,99166.0,99165.0,0.632053]
[1746688166010,0.373676,99166.0,99165.0,0.992853]
[1746688166211,0.406876,99166.0,99165.0,0.992853]
[1746688167815,0.172,99166.0,99165.0,0.886573]
[1746688168021,0.0613,99195.0,99167.0,0.0504174]
[1746688168209,0.2016658,99169.0,99168.0,0.2345678]
[1746688168517,0.2016658,99169.0,99168.0,0.64088]
[1746688168820,0.2016658,99169.0,99168.0,0.8425478]
[1746688169114,0.3696658,99169.0,99168.0,0.8425478]
[1746688169309,0.3696658,99169.0,99168.0,0.7662678]
[1746688169504,0.3696658,99169.0,99168.0,0.64088]
[1746688169713,0.3696658,99169.0,99168.0,0.44088]
[1746688169915,0.3696658,99169.0,99168.0,0.3327]
[1746688170115,0.4327658,99169.0,99168.0,0.40898]
[1746688171113,0.4327658,99169.0,99168.0,0.40798]
[1746688171717,0.4327658,99169.0,99168.0,0.3617]
[1746688171919,0.4327658,99169.0,99168.0,0.43798]
[1746688172914,0.4327658,99169.0,99168.0,0.3617]
[1746688173124,0.4327658,99169.0,99168.0,0.43798]
[1746688176414,0.4327658,99169.0,99168.0,0.3617]
[1746688176615,0.4327658,99169.0,99168.0,0.37628]
[1746688177320,0.5033458,99169.0,99168.0,0.37628]
[1746688189226,0.2016699,99167.0,99166.0,0.10888]
[1746688189426,0.2016699,99167.0,99166.0,0.16888]
[1746688189830,0.2016699,99167.0,99166.0,0.13628]
[1746688189831,0.7016699,99167.0,99166.0,0.13628]
[1746688190225,0.8696699,99167.0,99166.0,0.13628]
[1746688190627,0.9705099,99167.0,99166.0,0.13628]
[1746688193334,0.668,99167.0,99166.0,0.71648731]
[1746688193528,0.668,99167.0,99166.0,1.26648731]
[1746688193721,0.668,99167.0,99166.0,1.05648731]
[1746688194132,0.8696699,99167.0,99166.0,1.12088731]
[1746688194333,0.2016699,99167.0,99166.0,1.17088731]
[1746688194733,0.2016699,99167.0,99166.0,1.17288731]
[1746688195129,0.07058,99169.0,99168.0,0.2016678]
[1746688195331,0.07058,99169.0,99168.0,0.6416678]
[1746688195836,0.2722458,99169.0,99168.0,0.6416678]
[1746688197126,0.2722458,99169.0,99168.0,0.6436678]
[1746688199237,0.2722458,99169.0,99168.0,0.6456678]
[1746688201439,0.07058,99169.0,99168.0,0.6456678]
[1746688201836,0.2722458,99169.0,99168.0,0.6456678]
[1746688202230,0.4402458,99169.0,99168.0,0.6456678]
[1746688203441,0.23858,99169.0,99168.0,0.6456678]
[1746688203641,0.4402458,99169.0,99168.0,0.6456678]
[1746688204142,0.2722458,99169.0,99168.0,0.6456678]
[1746688206142,0.4402458,99169.0,99168.0,0.6456678]
[1746688207647,0.4402458,99169.0,99168.0,0.36024]
[1746688208544,0.5049458,99169.0,99168.0,0.36024]
[1746688210338,0.5049458,99169.0,99168.0,0.35824]
[1746688210540,0.5049458,99169.0,99168.0,0.35724]
[1746688211746,0.5049458,99169.0,99168.0,0.35624]
[1746688213847,0.4722458,99169.0,99168.0,0.35624]
[1746688215040,0.4402458,99169.0,99168.0,0.35624]
[1746688215548,0.4402458,99169.0,99168.0,0.5579078]
[1746688216445,0.4402458,99169.0,99168.0,0.5589078]
[1746688217149,0.4402458,99169.0,99168.0,0.5609078]
[1746688219047,0.4402458,99169.0,99168.0,0.5599078]
[1746688223344,0.4402458,99169.0,99168.0,0.5589078]
[1746688223545,0.4402458,99169.0,99168.0,0.5599078]
[1746688223853,0.4402458,99169.0,99168.0,0.9197078]
[1746688225051,0.4402458,99169.0,99168.0,0.71804]
[1746688225453,0.4402458,99169.0,99168.0,0.9197078]
[1746688226049,0.4402458,99169.0,99168.0,0.9187078]
[1746688226257,0.4402458,99169.0,99168.0,0.9197078]
[1746688226457,0.4402458,99169.0,99168.0,0.71804]
[1746688226956,0.4402458,99169.0,99168.0,0.71704]
[1746688227159,0.5048458,99169.0,99168.0,0.71704]
[1746688228057,0.5058458,99169.0,99168.0,0.71704]
[1746688230260,0.5048458,99169.0,99168.0,0.9187078]
[1746688230460,0.5058458,99169.0,99168.0,0.9187078]
[1746688231861,0.5048458,99169.0,99168.0,0.9187078]
[1746688232061,0.5048458,99169.0,99168.0,0.9495078]
[1746688232461,0.4718458,99169.0,99168.0,0.74784]
[1746688232657,0.5050458,99169.0,99168.0,0.74784]
[1746688234060,0.4718458,99169.0,99168.0,0.74784]
[1746688234456,0.4718458,99169.0,99168.0,0.78084]
[1746688234663,0.4728458,99169.0,99168.0,0.78084]
[1746688234962,0.4728458,99169.0,99168.0,0.7046]
[1746688235148,0.4718458,99169.0,99168.0,0.78084]
[1746688236453,0.4718458,99169.0,99168.0,0.74784]
[1746688236864,0.4728458,99169.0,99168.0,0.73784]
[1746688239063,0.4738458,99169.0,99168.0,0.73784]
[1746688239778,0.4718458,99169.0,99168.0,0.37704]
[1746688239974,0.4728458,99169.0,99168.0,0.37704]
[1746688240270,0.4728458,99169.0,99168.0,0.16704]
[1746688240575,0.5726858,99169.0,99168.0,0.13624]
[1746688240769,1.0726858,99169.0,99168.0,0.13624]
[1746688240976,1.0736858,99169.0,99168.0,0.13624]
[1746688241676,1.0736858,99169.0,99168.0,0.06]
[1746688242471,1.0746858,99169.0,99168.0,0.06]
[1746688247083,1.0756858,99169.0,99168.0,0.06]
[1746688247773,1.0746858,99169.0,99168.0,0.06]
[1746688247972,1.0776858,99169.0,99168.0,0.06]
[1746688249476,1.0766858,99169.0,99168.0,0.06]
[1746688250079,1.0746858,99169.0,99168.0,0.06]
[1746688250276,1.0766858,99169.0,99168.0,0.06]
[1746688251182,1.0726858,99169.0,99168.0,0.06]
[1746688251377,1.0766858,99169.0,99168.0,0.06]
[1746688253976,1.0746858,99169.0,99168.0,0.06]
[1746688254177,1.0766858,99169.0,99168.0,0.06]
[1746688255886,0.9758458,99169.0,99168.0,0.06]
[1746688256074,1.0766858,99169.0,99168.0,0.06]
[1746688258589,1.1073858,99169.0,99168.0,0.06]
[1746688259490,1.0065458,99169.0,99168.0,0.06]
[1746688262091,1.0065458,99169.0,99168.0,0.1211]
[1746688267394,1.00761758,99169.0,99168.0,0.1211]
[1746688275604,0.97691758,99169.0,99168.0,0.1211]
[1746688275807,0.94531758,99169.0,99168.0,0.1211]
[1746688277003,0.94531758,99169.0,99168.0,0.8027678]
[1746688277203,0.57565178,99169.0,99168.0,1.2007678]
[1746688277505,0.77731758,99169.0,99168.0,1.2007678]
[1746688277803,0.27731758,99169.0,99168.0,1.2007678]
[1746688278115,0.27531758,99169.0,99168.0,1.2007678]
[1746688278709,0.27331758,99169.0,99168.0,0.9517678]
[1746688279193,0.27331758,99169.0,99168.0,0.7827678]
[1746688279398,0.27331758,99169.0,99168.0,0.3421]
[1746688280207,0.44131758,99169.0,99168.0,0.3421]
[1746688280399,0.44131758,99169.0,99168.0,0.4183]
[1746688280798,0.44131758,99169.0,99168.0,0.4173]
[1746688281012,0.44131758,99169.0,99168.0,0.3572]
[1746688281809,0.44131758,99169.0,99168.0,0.5588678]
[1746688282406,0.44131758,99169.0,99168.0,0.5578678]
[1746688283002,0.44131758,99169.0,99168.0,0.5588678]
[1746688283406,0.44131758,99169.0,99168.0,0.5578678]
[1746688283703,0.44131758,99169.0,99168.0,0.5588678]
[1746688285109,0.27331758,99169.0,99168.0,0.5588678]
[1746688285411,0.27331758,99169.0,99168.0,0.5598678]
[1746688287009,0.27331758,99169.0,99168.0,0.5588678]
[1746688287197,0.44131758,99169.0,99168.0,0.5598678]
[1746688289011,0.44185184,99169.0,99168.0,0.5598678]
[1746688289208,0.27385184,99169.0,99168.0,0.5598678]
[1746688289909,0.27385184,99169.0,99168.0,0.3582]
[1746688290104,0.44185184,99169.0,99168.0,0.3582]
[1746688291008,0.44185184,99169.0,99168.0,0.3572]
[1746688291211,0.44185184,99169.0,99168.0,0.3582]
[1746688291601,0.44185184,99169.0,99168.0,0.5598678]
[1746688292303,0.44185184,99169.0,99168.0,0.3582]
[1746688292707,0.44185184,99169.0,99168.0,0.3572]
[1746688292911,0.44185184,99169.0,99168.0,0.3582]
[1746688293208,0.44185184,99169.0,99168.0,0.5588678]
[1746688293408,0.44185184,99169.0,99168.0,0.5598678]
[1746688294410,0.44185184,99169.0,99168.0,0.5588678]
[1746688294615,0.44185184,99169.0,99168.0,0.3572]
[1746688295103,0.44185184,99169.0,99168.0,0.4214]
[1746688296008,0.44185184,99169.0,99168.0,0.4204]
[1746688298516,0.44185184,99169.0,99168.0,0.4004]
[1746688307825,0.44185184,99169.0,99168.0,0.6020678]
[1746688308324,0.44185184,99169.0,99168.0,0.4004]
[1746688318217,0.44185184,99169.0,99168.0,0.1572817]
[1746688318424,0.2016821,99161.0,99160.0,0.10856]
[1746688318622,0.5624821,99161.0,99160.0,0.11856]
[1746688319028,0.56408814,99161.0,99160.0,0.11856]
[1746688319224,0.79498814,99161.0,99160.0,0.11856]
[1746688319424,1.29498814,99161.0,99160.0,0.11856]
[1746688320031,1.29698814,99161.0,99160.0,0.11856]
[1746688321732,1.29898814,99161.0,99160.0,0.11856]
[1746688326036,1.36957814,99161.0,99160.0,0.11856]
[1746688336140,1.30667814,99161.0,99160.0,0.3202441]
[1746688336342,1.30667814,99161.0,99160.0,0.3702441]
[1746688337137,1.13867814,99161.0,99160.0,0.3702441]
[1746688337342,1.13867814,99161.0,99160.0,0.16856]
[1746688338534,0.77787814,99161.0,99160.0,0.20036]
[1746688340648,0.77587814,99161.0,99160.0,0.20036]
[1746688341245,0.94387814,99161.0,99160.0,0.20036]
[1746688341736,0.94187814,99161.0,99160.0,0.20036]
[1746688343039,0.94187814,99161.0,99160.0,0.20032]
[1746688345143,0.77387814,99161.0,99160.0,0.20032]
[1746688345849,0.77487814,99161.0,99160.0,0.20032]
[1746688346050,0.77587814,99161.0,99160.0,0.20032]
[1746688346246,0.94387814,99161.0,99160.0,0.20032]
[1746688346444,0.94287814,99161.0,99160.0,0.20032]
[1746688346644,0.94387814,99161.0,99160.0,0.20032]
[1746688347143,0.77587814,99161.0,99160.0,0.20032]
[1746688348151,0.77487814,99161.0,99160.0,0.20032]
[1746688348352,0.77587814,99161.0,99160.0,0.20032]
[1746688348952,0.77387814,99161.0,99160.0,0.20032]
[1746688349349,0.77387814,99161.0,99160.0,0.4020041]
[1746688349554,0.77387814,99161.0,99160.0,0.20032]
[1746688350157,0.94187814,99161.0,99160.0,0.20032]
[1746688351248,0.77387814,99161.0,99160.0,0.20032]
[1746688355160,0.94187814,99161.0,99160.0,0.20032]
[1746688356147,1.00437814,99161.0,99160.0,0.20032]
[1746688356849,1.00537814,99161.0,99160.0,0.20032]
[1746688357057,1.00537814,99161.0,99160.0,0.1242]
[1746688357257,1.00537814,99161.0,99160.0,0.20032]
[1746688358060,1.00537814,99161.0,99160.0,0.1242]
[1746688358252,1.00537814,99161.0,99160.0,0.20032]
[1746688358862,1.00637814,99161.0,99160.0,0.20032]
[1746688364060,1.00637814,99161.0,99160.0,0.16844]
[1746688369559,1.00537814,99161.0,99160.0,0.16844]
[1746688369755,1.00637814,99161.0,99160.0,0.16844]
[1746688371955,1.00537814,99161.0,99160.0,0.16844]
[1746688372163,1.00637814,99161.0,99160.0,0.16844]
[1746688372566,0.94387814,99161.0,99160.0,0.16844]
[1746688372769,0.94287814,99161.0,99160.0,0.16844]
[1746688373073,0.77487814,99161.0,99160.0,0.16844]
[1746688373267,0.77487814,99161.0,99160.0,0.42844]
[1746688373467,0.27387814,99161.0,99160.0,0.42844]
[1746688373668,0.27387814,99161.0,99160.0,0.6301241]
[1746688375372,0.27387814,99161.0,99160.0,0.6321241]
[1746688376072,0.27387814,99161.0,99160.0,0.6331241]
[1746688376573,0.27387814,99161.0,99160.0,0.6321241]
[1746688378673,0.27387814,99161.0,99160.0,0.6311241]
[1746688378874,0.27387814,99161.0,99160.0,0.6321241]
[1746688379679,0.27387814,99161.0,99160.0,0.43044]
[1746688380277,0.47367814,99161.0,99160.0,0.38044]
[1746688380974,0.47367814,99161.0,99160.0,0.14044]
[1746688381170,0.97367814,99161.0,99160.0,0.14044]
[1746688381570,0.97567814,99161.0,99160.0,0.13944]
[1746688382779,0.97667814,99161.0,99160.0,0.13844]
[1746688383380,0.97467814,99161.0,99160.0,0.13844]
[1746688383581,0.97567814,99161.0,99160.0,0.13844]
[1746688384185,0.97467814,99161.0,99160.0,0.13844]
[1746688384378,0.97567814,99161.0,99160.0,0.13844]
[1746688384978,0.97467814,99161.0,99160.0,0.13844]
[1746688385172,0.97567814,99161.0,99160.0,0.13844]
[1746688385375,0.97567814,99161.0,99160.0,0.15844]
[1746688385978,0.97467814,99161.0,99160.0,0.15844]
[1746688386778,0.97367814,99161.0,99160.0,0.15844]
[1746688390883,0.97467814,99161.0,99160.0,0.15844]
[1746688391788,0.97467814,99161.0,99160.0,0.13844]
[1746688392688,0.97467814,99161.0,99160.0,0.0624]
[1746688392890,0.97467814,99161.0,99160.0,0.1384]
[1746688393387,0.80667814,99161.0,99160.0,0.1384]
[1746688393689,0.80567814,99161.0,99160.0,0.1384]
[1746688393889,0.80667814,99161.0,99160.0,0.1384]
[1746688394082,0.97467814,99161.0,99160.0,0.1384]
[1746688395183,0.80667814,99161.0,99160.0,0.1384]
[1746688395494,0.80767814,99161.0,99160.0,0.1384]
[1746688396293,0.97567814,99161.0,99160.0,0.1384]
[1746688396694,0.97567814,99161.0,99160.0,0.0624]
[1746688396894,0.87484405,99161.0,99150.0,0.01]
[1746688397191,0.2016983,99153.0,99152.0,0.0313]
[1746688397395,0.2016983,99153.0,99152.0,0.0413]
[1746688398213,0.20330434,99153.0,99152.0,0.1173]
[1746688398803,0.70330434,99153.0,99152.0,0.1173]
[1746688400408,0.70430434,99153.0,99152.0,0.1173]
[1746688401411,0.70530434,99153.0,99152.0,0.1173]
[1746688402302,0.70530434,99153.0,99152.0,0.1473]
[1746688402503,0.70530434,99153.0,99152.0,0.7098004]
[1746688402703,0.70430434,99153.0,99152.0,0.7098004]
[1746688402899,0.70330434,99153.0,99152.0,0.7098004]
[1746688403102,0.70330434,99153.0,99152.0,0.5081]
[1746688403311,0.70330434,99153.0,99152.0,0.4321]
[1746688403498,0.70330434,99153.0,99152.0,0.5091]
[1746688403703,0.70330434,99153.0,99152.0,0.5412]
[1746688404314,0.70330434,99153.0,99152.0,0.7429004]
[1746688404613,0.70330434,99153.0,99152.0,0.7439004]
[1746688405312,0.70330434,99153.0,99152.0,0.7102]
[1746688405706,0.70330434,99153.0,99152.0,0.7092]
[1746688405917,0.70330434,99153.0,99152.0,0.7082]
[1746688406515,0.70330434,99153.0,99152.0,0.9099004]
[1746688407414,0.70330434,99153.0,99152.0,0.7082]
[1746688408113,0.70330434,99153.0,99152.0,0.6322]
[1746688408317,0.70330434,99153.0,99152.0,0.7082]
[1746688411711,0.70330434,99153.0,99152.0,0.6782]
[1746688412115,0.93510434,99153.0,99152.0,0.5102]
[1746688412309,0.93510434,99153.0,99152.0,0.4342]
[1746688412616,0.93510434,99153.0,99152.0,0.5102]
[1746688412818,0.93710434,99153.0,99152.0,0.5102]
[1746688413517,0.93810434,99153.0,99152.0,0.5102]
[1746688414518,0.90630434,99153.0,99152.0,0.5102]
[1746688415412,0.87430434,99153.0,99152.0,0.5102]
[1746688417022,0.87430434,99153.0,99152.0,0.4781]
[1746688418521,0.87330434,99153.0,99152.0,0.4781]
[1746688418815,0.87430434,99153.0,99152.0,0.4781]
[1746688419020,0.87230434,99153.0,99152.0,0.4781]
[1746688419316,0.87330434,99153.0,99152.0,0.4781]
[1746688420613,0.87230434,99153.0,99152.0,0.4781]
[1746688420809,0.87330434,99153.0,99152.0,0.4781]
[1746688421014,0.87330434,99153.0,99152.0,0.1173]
[1746688421213,0.87230434,99153.0,99152.0,0.1173]
[1746688422823,0.87330434,99153.0,99152.0,0.1173]
[1746688423517,0.87230434,99153.0,99152.0,0.1173]
[1746688423718,0.87430434,99153.0,99152.0,0.1173]
[1746688423925,0.87430434,99153.0,99152.0,0.0413]
[1746688424125,0.87430434,99153.0,99152.0,0.01]
[1746688426927,0.2017065,99149.0,99148.0,0.0305]
[1746688427225,0.2017065,99149.0,99144.0,0.1966551]
[1746688427226,0.2017146,99145.0,99144.0,0.1966551]
[1746688427428,0.2017146,99145.0,99144.0,0.2066551]
[1746688427928,0.8926146,99145.0,99144.0,0.2066551]
[1746688428125,1.12712064,99145.0,99144.0,0.2066551]
[1746688429520,1.62712064,99145.0,99144.0,0.2066551]
[1746688429730,0.201739,99133.0,99131.0,0.0308]
[1746688430026,0.562539,99133.0,99132.0,0.01151315]
[1746688430220,0.73214504,99133.0,99132.0,0.01151315]
[1746688431028,0.76244504,99133.0,99132.0,0.04391315]
[1746688431328,1.26244504,99133.0,99132.0,0.04591315]
[1746688431926,1.26244504,99133.0,99132.0,0.04891315]
[1746688435123,1.23214504,99133.0,99132.0,0.04891315]
[1746688441134,1.06414504,99133.0,99132.0,0.04891315]
[1746688445137,1.23214504,99133.0,99132.0,0.04891315]
[1746688447240,1.06414504,99133.0,99132.0,0.04891315]
[1746688448835,1.06414504,99133.0,99132.0,0.25065425]
[1746688449039,0.70334504,99133.0,99132.0,0.07891315]
[1746688449236,0.70334504,99133.0,99132.0,0.44865425]
[1746688449641,0.70334504,99133.0,99132.0,0.24691315]
[1746688449839,0.20434504,99133.0,99132.0,0.24491315]
[1746688450035,0.20434504,99133.0,99132.0,0.21191315]
[1746688450341,0.20434504,99133.0,99132.0,0.12183315]
[1746688450839,0.20334504,99133.0,99132.0,0.12183315]
[1746688451230,0.37134504,99133.0,99132.0,0.12183315]
[1746688451739,0.87134504,99133.0,99132.0,0.12183315]
[1746688452043,0.87134504,99133.0,99132.0,0.11983315]
[1746688452339,0.70334504,99133.0,99132.0,0.11983315]
[1746688456242,0.70334504,99133.0,99132.0,0.32157425]
[1746688456643,0.70334504,99133.0,99132.0,0.14983315]
[1746688457244,0.70334504,99133.0,99132.0,0.31783315]
[1746688457544,0.70334504,99133.0,99132.0,0.31883315]
[1746688458244,0.70334504,99133.0,99132.0,0.15083315]
[1746688458444,0.70334504,99133.0,99132.0,0.15183315]
[1746688458645,0.70334504,99133.0,99132.0,0.35357425]
[1746688459039,0.70334504,99133.0,99132.0,0.35257425]
[1746688459241,0.70334504,99133.0,99132.0,0.52057425]
[1746688459443,0.70334504,99133.0,99132.0,0.31883315]
[1746688459644,0.70334504,99133.0,99132.0,0.31983315]
[1746688459834,0.70334504,99133.0,99132.0,0.31883315]
[1746688460250,0.70334504,99133.0,99132.0,0.37883315]
[1746688460645,0.70334504,99133.0,99132.0,0.59983315]
[1746688461640,0.70334504,99133.0,99132.0,0.80157425]
[1746688461843,0.70334504,99133.0,99132.0,0.80057425]
[1746688462245,0.70334504,99133.0,99132.0,0.79957425]
[1746688462434,0.70334504,99133.0,99132.0,0.80057425]
[1746688462951,0.70334504,99133.0,99132.0,0.80157425]
[1746688463147,0.70334504,99133.0,99132.0,0.80357425]
[1746688463447,0.70334504,99133.0,99132.0,0.80157425]
[1746688463638,0.70334504,99133.0,99132.0,0.80357425]
[1746688463839,0.70334504,99133.0,99132.0,0.80457425]
[1746688465149,0.70334504,99133.0,99132.0,0.80257425]
[1746688465453,0.70334504,99133.0,99132.0,0.80357425]
[1746688465749,0.70334504,99133.0,99132.0,0.80157425]
[1746688465951,0.70334504,99133.0,99132.0,0.80357425]
[1746688469254,0.70334504,99133.0,99132.0,0.80157425]
[1746688469465,0.70334504,99133.0,99132.0,0.80357425]
[1746688471165,0.70334504,99133.0,99132.0,0.80157425]
[1746688471467,0.70334504,99133.0,99132.0,0.63457425]
[1746688472368,0.70334504,99133.0,99132.0,0.80257425]
[1746688475364,0.70334504,99133.0,99132.0,1.16337425]
[1746688477072,0.70334504,99133.0,99132.0,0.99537425]
[1746688479073,0.70334504,99133.0,99132.0,0.63457425]
[1746688479273,0.70334504,99133.0,99132.0,0.99537425]
[1746688481067,0.20334504,99133.0,99132.0,0.99537425]
[1746688484179,0.20334504,99133.0,99132.0,0.63457425]
[1746688484376,0.20334504,99133.0,99132.0,0.99537425]
[1746688484878,0.20334504,99133.0,99132.0,0.91945425]
[1746688485070,0.20334504,99133.0,99132.0,0.99529425]
[1746688485271,0.20334504,99133.0,99132.0,1.16329425]
[1746688486179,0.20334504,99133.0,99132.0,0.99529425]
[1746688490180,0.3025877,99146.0,99132.0,1.43242915]
[1746688490480,0.3025877,99146.0,99145.0,0.5625085]
[1746688490679,0.3025877,99146.0,99145.0,0.7025085]
[1746688490882,0.3025877,99146.0,99145.0,0.71272247]
[1746688491474,0.8025877,99146.0,99145.0,0.71272247]
[1746688492280,0.8055877,99146.0,99145.0,0.71272247]
[1746688492474,0.8055877,99146.0,99145.0,0.74362247]
[1746688492980,0.8055877,99146.0,99145.0,0.77502247]
[1746688493786,0.3055877,99146.0,99145.0,0.77502247]
[1746688494685,0.3035877,99146.0,99145.0,0.77602247]
[1746688494887,0.3004689,99146.0,99145.0,0.77602247]
[1746688495184,0.2994689,99146.0,99145.0,0.85178247]
[1746688497087,0.4674689,99146.0,99145.0,0.85278247]
[1746688498282,0.2994689,99146.0,99145.0,0.85278247]
[1746688499089,0.2994689,99146.0,99145.0,0.85178247]
[1746688499688,0.2994689,99146.0,99145.0,0.85278247]
[1746688502491,0.2994689,99146.0,99145.0,0.85178247]
[1746688503093,0.2994689,99146.0,99145.0,0.85278247]
[1746688504094,0.2490378,99146.0,99145.0,0.85278247]
[1746688504487,0.3196378,99146.0,99145.0,0.85278247]
[1746688505087,0.3196378,99146.0,99145.0,1.02078247]
[1746688506287,0.3196378,99146.0,99145.0,0.85278247]
[1746688512597,0.3196378,99146.0,99145.0,0.65107397]
[1746688512802,0.3196378,99146.0,99145.0,0.56856]
[1746688513091,0.3196378,99146.0,99145.0,0.5063004]
[1746688513092,0.4876378,99146.0,99145.0,0.5063004]
[1746688513487,0.4876378,99146.0,99145.0,0.20776]
[1746688517491,0.5536378,99146.0,99145.0,0.20776]
[1746688518293,1.0536378,99146.0,99145.0,0.132]
[1746688522998,1.0536378,99146.0,99145.0,0.1627]
[1746688523499,1.0536378,99146.0,99145.0,0.23838]
[1746688525299,0.8526378,99146.0,99145.0,0.23838]
[1746688525500,0.8851378,99146.0,99145.0,0.23838]
[1746688529507,0.8851378,99146.0,99145.0,0.24838]
[1746688534211,1.0531378,99146.0,99145.0,0.24838]
[1746688535217,0.8851378,99146.0,99145.0,0.24838]
[1746688537111,1.0531378,99146.0,99145.0,0.24838]
[1746688538714,1.0206378,99146.0,99145.0,0.24838]
[1746688539210,0.8526378,99146.0,99145.0,0.24838]
[1746688539515,0.8196378,99146.0,99145.0,0.24838]
[1746688540215,0.9876378,99146.0,99145.0,0.24838]
[1746688541217,0.8196378,99146.0,99145.0,0.24838]
[1746688542508,0.8196378,99146.0,99145.0,0.4500946]
[1746688543313,0.8196378,99146.0,99145.0,0.8432946]
[1746688544307,0.3196378,99146.0,99145.0,0.8432946]
[1746688547816,0.0706,99146.0,99145.0,0.9232946]
[1746688548125,0.2723126,99146.0,99145.0,0.9232946]
[1746688550129,0.2723126,99146.0,99145.0,1.0912946]
[1746688552145,0.2723126,99146.0,99145.0,0.9232946]
[1746688553242,0.2723126,99146.0,99145.0,1.0912946]
[1746688558145,0.2723126,99146.0,99145.0,0.9232946]
[1746688559943,0.0706,99146.0,99145.0,1.1532946]
[1746688560137,0.0706,99146.0,99145.0,1.3212946]
[1746688560542,0.0706,99146.0,99145.0,1.3512946]
[1746688561039,0.2723126,99146.0,99145.0,1.0739]
[1746688561241,0.2723126,99146.0,99145.0,1.1395]
[1746688561441,0.2723126,99146.0,99145.0,0.7463]
[1746688561637,0.2723126,99146.0,99145.0,0.5663]
[1746688561942,0.3035126,99146.0,99145.0,0.2863]
[1746688562143,0.4715126,99146.0,99145.0,0.2863]
[1746688562335,0.4715126,99146.0,99145.0,0.1183]
[1746688562750,0.4715126,99146.0,99145.0,0.0427]
[1746688562948,0.9715126,99146.0,99145.0,0.1183]
[1746688563550,0.9715126,99146.0,99145.0,0.1283]
[1746688566248,0.9715126,99146.0,99145.0,0.0527]
[1746688566449,0.9715126,99146.0,99145.0,0.12834]
[1746688568242,1.0038126,99146.0,99145.0,0.12834]
[1746688577158,0.9715126,99146.0,99145.0,0.12834]
[1746688580562,0.9715126,99146.0,99145.0,0.11834]
[1746688580854,1.0025126,99146.0,99145.0,0.11834]
[1746688582255,1.0025126,99146.0,99145.0,0.0427]
[1746688582460,0.201735,99135.0,99134.0,0.07556]
[1746688582655,0.201735,99135.0,99134.0,0.01]
[1746688583054,0.264735,99135.0,99134.0,0.042]
[1746688583261,0.432735,99135.0,99134.0,0.042]
[1746688583861,0.432735,99135.0,99134.0,0.045]
[1746688584058,0.932735,99135.0,99134.0,0.045]
[1746688584855,0.932735,99135.0,99134.0,0.048]
[1746688585755,0.934735,99135.0,99134.0,0.045]
[1746688586461,0.935735,99135.0,99134.0,0.032]
[1746688586759,0.938735,99135.0,99134.0,0.032]
[1746688589159,0.875735,99135.0,99134.0,0.032]
[1746688589361,0.875735,99135.0,99134.0,0.052]
[1746688590061,0.872735,99135.0,99134.0,0.052]
[1746688590363,0.706735,99135.0,99134.0,0.052]
[1746688590763,0.704735,99135.0,99134.0,0.284037]
[1746688591166,0.703735,99135.0,99134.0,0.284037]
[1746688591469,0.774345,99135.0,99134.0,0.284037]
[1746688591966,0.772345,99135.0,99134.0,0.285037]
[1746688593073,0.272345,99135.0,99134.0,0.360597]
[1746688593771,0.272345,99135.0,99134.0,0.361597]
[1746688594362,0.272345,99135.0,99134.0,0.721397]
[1746688595168,0.272345,99135.0,99134.0,0.889397]
[1746688595965,0.272345,99135.0,99134.0,1.149397]
[1746688596371,0.0504221,99158.0,99146.0,0.2521274]
[1746688596573,0.2017245,99147.0,99146.0,0.3321274]
[1746688596771,0.2017245,99147.0,99146.0,0.6929274]
[1746688597174,0.2017245,99147.0,99146.0,0.8609274]
[1746688597672,0.2017071,99149.0,99148.0,0.2521311]
[1746688597869,0.2017071,99149.0,99148.0,0.3421311]
[1746688598068,0.2017071,99149.0,99148.0,0.5101311]
[1746688598469,0.2017071,99149.0,99148.0,0.4597044]
[1746688603472,0.2017071,99149.0,99148.0,0.5352644]
[1746688604074,0.2017071,99149.0,99148.0,0.3672644]
[1746688606373,0.2017071,99149.0,99148.0,0.16556]
[1746688606776,0.2017071,99149.0,99148.0,0.09]
[1746688607175,0.2017071,99149.0,99148.0,0.16556]
[1746688607475,0.2017071,99149.0,99148.0,0.3672685]
[1746688608175,0.3697071,99149.0,99148.0,0.3672685]
[1746688610277,0.2017071,99149.0,99148.0,0.3672685]
[1746688610772,0.2017071,99149.0,99148.0,0.16556]
[1746688611178,0.3697071,99149.0,99148.0,0.16556]
[1746688611477,0.4359071,99149.0,99148.0,0.16556]
[1746688611672,0.4359071,99149.0,99148.0,0.19586]
[1746688615272,0.4359071,99149.0,99148.0,0.1203]
[1746688615472,0.4359071,99149.0,99148.0,0.22628]
[1746688618173,0.2679071,99149.0,99148.0,0.22628]
[1746688620078,0.2017071,99149.0,99148.0,0.4279885]
[1746688620286,0.2017071,99149.0,99148.0,0.3525085]
[1746688620478,0.2017071,99149.0,99148.0,0.4279885]
[1746688622277,0.2017071,99149.0,99148.0,0.4289885]
[1746688623472,0.2017071,99149.0,99148.0,0.4299885]
[1746688625585,0.2017044,99151.0,99150.0,0.2521261]
[1746688625786,0.2017044,99151.0,99150.0,0.4171804]
[1746688625975,0.2017044,99151.0,99150.0,0.4826804]
[1746688626680,0.2017044,99151.0,99150.0,0.4836804]
[1746688627280,0.2017044,99151.0,99150.0,0.4846804]
[1746688628690,0.0504236,99155.0,99154.0,0.2016922]
[1746688628891,0.0504236,99155.0,99154.0,0.6824922]
[1746688629192,0.0504236,99155.0,99154.0,0.7462922]
[1746688629579,0.2521216,99155.0,99154.0,0.5446]
[1746688629784,0.2521216,99155.0,99154.0,0.7462963]
[1746688630590,0.2521216,99155.0,99154.0,0.7472963]
[1746688632380,0.2521216,99155.0,99154.0,0.83215717]
[1746688633685,0.2521216,99155.0,99154.0,0.63046087]
[1746688633892,0.2521216,99155.0,99154.0,0.62008]
[1746688634391,0.2521216,99155.0,99154.0,0.62108]
[1746688636292,0.2521216,99155.0,99154.0,0.62008]
[1746688639600,0.2521216,99155.0,99154.0,0.62108]
[1746688645602,0.2521216,99155.0,99154.0,0.62008]
[1746688648108,0.4201216,99155.0,99154.0,0.62008]